fUST/lending_fUST_20240105
["ID","MTS","AMOUNT","RATE_DAILY","PERIOD"]
[310212561,1704402569149,-154.75239617,0.00026809,4]
[310212562,1704402569169,-188.06706125,0.00029788,2]
[310212563,1704402569189,-461.54732786,0.00030889,4]
[310212564,1704402569209,-62543.88860843,0.00031,4]
[310212565,1704402569230,-340.15098204,0.0003149,2]
[310212566,1704402569249,-340.15098204,0.0003209,2]
[310212567,1704402569268,-3387.78283413,0.0003219,2]
[310212568,1704402569288,-280.0,0.00032842,15]
[310212569,1704402569307,-590.18705487,0.00032876,7]
[310212570,1704402569326,-221.589608,0.00032948,2]
[310212571,1704402569346,-154.90705577,0.00033,4]
[310212572,1704402569366,-229.93678728,0.00033991,4]
[310212573,1704402569387,-1013.2,0.00033991,4]
[310212574,1704402569405,-762.54664786,0.00033991,2]
[310212575,1704402569427,-1347.63550908,0.00034,2]
[310212576,1704402569447,-1000.0,0.00034,7]
[310212577,1704402569581,-680.1564,0.00034,4]
[310212578,1704402569600,-6313.84424171,0.000345,2]
[310212579,1704402569619,-692.99520623,0.00034521,2]
[310212580,1704402570088,-227.16124238,0.00030889,2]
[310212651,1704402632283,-12.83963411,0.00030889,2]
[310212652,1704402632293,-282.15862485,0.00030889,3]
[310212653,1704402632302,-154.75239617,0.00034198,5]
[310212654,1704402632311,-1759.44934487,0.00034521,2]
[310212655,1704402632323,-1408.2469669,0.00034521,2]
[310212656,1704402632332,-151.0,0.00034964,2]
[310212657,1704402632341,-2688.24641711,0.00035,4]
[310212658,1704402632353,-1387.76682136,0.00035,4]
[310212659,1704402632363,-155.30154661,0.00035,6]
[310212660,1704402632373,-2649.74411986,0.00035,4]
[310212661,1704402632383,-590.45108746,0.00035419,2]
[310212662,1704402632393,-7795.99419883,0.00035419,4]
[310212663,1704402632402,-1454.89912219,0.0003542,14]
[310212664,1704402632412,-154.75239617,0.00035421,4]
[310212665,1704402632423,-332.07950254,0.00035421,4]
[310212666,1704402632432,-230.0,0.00035422,2]
[310212667,1704402632441,-21313.72291214,0.00035422,2]
[310212675,1704402632511,-23.54411969,0.00035422,2]
[310212677,1704402632520,-3539.86097792,0.00035451,2]
[310212679,1704402632529,-614.0,0.00035452,2]
[310212681,1704402632539,-261.0,0.00035452,2]
[310212683,1704402632548,-24157.56446386,0.000355,14]
[310212879,1704402638366,-4620.49385229,0.000355,14]
[310212881,1704402638376,-150.75878594,0.00035603,4]
[310212882,1704402638385,-342.927861,0.00035616,120]
[310212884,1704402638395,-3860.691518,0.00035798,2]
[310212886,1704402638404,-379.46760577,0.00036,4]
[310212889,1704402638414,-496.1966346,0.00036032,5]
[310212891,1704402638424,-645.40711417,0.00036256,2]
[310212893,1704402638437,-150.75878594,0.0003633,2]
[310212895,1704402638447,-12203.38142743,0.00036438,5]
[310212897,1704402638456,-3522.79,0.00037,2]
[310212899,1704402638465,-2196.23,0.00037,2]
[310212900,1704402638475,-5999.99,0.00037,2]
[310212902,1704402638484,-1800.56,0.00037,2]
[310212904,1704402638493,-6000.0,0.00037,2]
[310212906,1704402638503,-2547.93014574,0.00037,7]
[310212909,1704402638512,-155.0,0.00037,2]
[310212910,1704402638522,-3860.691518,0.00037075,2]
[310212913,1704402638532,-5473.45,0.0003718,2]
[310212914,1704402638541,-167.83,0.00037256,2]
[310212916,1704402638550,-167.83,0.00037256,2]
[310212918,1704402638561,-167.83,0.00037256,2]
[310212920,1704402638570,-167.83,0.00037256,2]
[310212923,1704402638582,-167.83,0.00037256,2]
[310212925,1704402638591,-167.83,0.00037256,2]
[310212927,1704402638601,-167.83,0.00037256,2]
[310212929,1704402638610,-167.83,0.00037256,2]
[310212931,1704402638620,-167.83,0.00037256,2]
[310212933,1704402638630,-167.83,0.00037256,2]
[310212935,1704402638640,-167.83,0.00037256,2]
[310212937,1704402638650,-167.83,0.00037256,2]
[310212939,1704402638659,-167.83,0.00037256,2]
[310212941,1704402638669,-167.83,0.00037256,2]
[310212943,1704402638677,-167.83,0.00037256,2]
[310212945,1704402638687,-167.83,0.00037256,2]
[310212947,1704402638696,-167.83,0.00037256,2]
[310212949,1704402638705,-167.83,0.00037256,2]
[310212950,1704402638713,-167.83,0.00037256,2]
[310212953,1704402638723,-167.83,0.00037256,2]
[310212954,1704402638733,-685.53559507,0.00037893,4]
[310212957,1704402638743,-1050.61771134,0.00037893,3]
[310212959,1704402638752,-638.6179028,0.00037893,4]
[310212961,1704402638761,-393.45803658,0.00037893,2]
[310212963,1704402638771,-231.16667917,0.00037894,4]
[310212965,1704402638780,-443.79613333,0.00037894,2]
[310212967,1704402638790,-7027.47135002,0.00037894,4]
[310212969,1704402638799,-148325.84860296,0.00037894,4]
[310212971,1704402638809,-29929.92810211,0.00037895,2]
[310212973,1704402638818,-252.676438,0.00037895,2]
[310212975,1704402638827,-252.676438,0.00037895,2]
[310212976,1704402638836,-151.0,0.00037895,2]
[310212978,1704402638846,-151.0,0.00037895,2]
[310212980,1704402638856,-331.499816,0.00037895,2]
[310212982,1704402638864,-331.499816,0.00037895,2]
[310212984,1704402638873,-243.37606438,0.00037929,4]
[310212987,1704402638883,-573.5131418,0.0003793,5]
[310212988,1704402638893,-6536.43197787,0.00037995,4]
[310212991,1704402638902,-264.81601131,0.00037996,4]
[310212993,1704402638911,-2067.82698933,0.00037996,4]
[310212994,1704402638920,-2097.73160257,0.00037996,4]
[310212996,1704402638930,-154.84515485,0.00037998,4]
[310212998,1704402638939,-1000.0,0.00037999,7]
[310213001,1704402638948,-643.14644872,0.00037999,4]
[310213002,1704402638957,-207.03762275,0.00037999,4]
[310213004,1704402638966,-482.35983654,0.00037999,7]
[310213007,1704402638975,-228.93519685,0.00038,3]
[310213009,1704402638986,-815.37575522,0.00038,4]
[310213011,1704402638995,-536208.26018553,0.00038,10]
[310213013,1704402639004,-379.48356558,0.00038,4]
[310213015,1704402639013,-252.676438,0.00038,2]
[310213017,1704402639021,-252.676438,0.00038,2]
[310213019,1704402639030,-151.0,0.00038,2]
[310213021,1704402639039,-151.0,0.00038,2]
[310213022,1704402639048,-331.499816,0.00038,2]
[310213024,1704402639057,-331.499816,0.00038,2]
[310213026,1704402639067,-1029.24597412,0.00038152,4]
[310213028,1704402639076,-36779.03407902,0.00038152,4]
[310213030,1704402639085,-166.20606799,0.00038153,4]
[310213032,1704402639094,-945.03415602,0.00038153,4]
[310213034,1704402639104,-154.84515485,0.00038154,4]
[310213036,1704402639113,-154.84515485,0.00038155,4]
[310213038,1704402639122,-261.41294884,0.00038155,4]
[310213040,1704402639131,-3185.09941097,0.00038155,4]
[310213042,1704402639140,-124684.92632257,0.00038256,2]
[310213044,1704402639149,-252.676438,0.00038256,2]
[310213046,1704402639158,-252.676438,0.00038256,2]
[310213048,1704402639167,-151.0,0.00038256,2]
[310213050,1704402639176,-151.0,0.00038256,2]
[310213052,1704402639186,-331.499816,0.00038256,2]
[310213054,1704402639196,-331.499816,0.00038256,2]
[310213056,1704402639205,-3860.691518,0.00038352,2]
[310213058,1704402639214,-151.0,0.00038356,2]
[310213060,1704402639223,-252.676438,0.00038356,2]
[310213062,1704402639232,-252.676438,0.00038356,2]
[310213065,1704402639242,-252.676438,0.00038356,2]
[310213067,1704402639251,-252.676438,0.00038356,2]
[310213068,1704402639260,-252.676438,0.00038356,2]
[310213071,1704402639269,-252.676438,0.00038356,2]
[310213073,1704402639278,-151.0,0.00038356,2]
[310213075,1704402639287,-151.0,0.00038356,2]
[310213077,1704402639296,-151.0,0.00038356,2]
[310213079,1704402639305,-151.0,0.00038356,2]
[310213081,1704402639314,-294.28293675,0.00038356,2]
[310213082,1704402639323,-331.499816,0.00038356,2]
[310213085,1704402639332,-331.499816,0.00038356,2]
[310213086,1704402639341,-331.499816,0.00038356,2]
[310213089,1704402639350,-331.499816,0.00038356,2]
[310213091,1704402639360,-331.499816,0.00038356,2]
[310213092,1704402639369,-331.499816,0.00038356,2]
[310213095,1704402639378,-154.78330338,0.00038356,7]
[310213097,1704402639392,-500.0,0.00038356,7]
[310213099,1704402639401,-500.0,0.00038356,7]
[310213101,1704402639410,-500.0,0.00038356,7]
[310213103,1704402639421,-500.0,0.00038356,7]
[310213105,1704402639435,-500.0,0.00038356,7]
[310213107,1704402639444,-500.0,0.00038356,7]
[310213109,1704402639453,-500.0,0.00038356,7]
[310213111,1704402639462,-562.88192525,0.00038356,7]
[310213113,1704402639475,-334.439017,0.00038356,7]
[310213115,1704402639484,-535.86053554,0.00038356,7]
[310213117,1704402639493,-500.0,0.00038356,7]
[310213119,1704402639502,-500.0,0.00038356,7]
[310213121,1704402639511,-500.0,0.00038356,7]
[310213123,1704402639520,-500.0,0.00038356,7]
[310213124,1704402639529,-1019.78,0.00038356,7]
[310213126,1704402639538,-500.0,0.00038356,7]
[310213128,1704402639547,-249.58695295,0.00038356,4]
[310213130,1704402639557,-500.0,0.00038356,7]
[310213132,1704402639567,-833.25,0.00038356,7]
[310213135,1704402639577,-500.0,0.00038356,7]
[310213136,1704402639586,-420.89302965,0.00038356,7]
[310213138,1704402639595,-500.0,0.00038356,7]
[310213140,1704402639604,-500.0,0.00038356,2]
[310213142,1704402639613,-5000.0,0.00038356,10]
[310213144,1704402639623,-154.78330338,0.00038356,30]
[310213146,1704402639632,-500.0,0.00038356,7]
[310213148,1704402639642,-429.43591728,0.00038356,2]
[310213150,1704402639650,-248.85244994,0.00038356,4]
[310213152,1704402639660,-1197.4,0.00038356,7]
[310213154,1704402639669,-3541.05061574,0.00038356,4]
[310213156,1704402639678,-500.0,0.00038356,7]
[310213158,1704402639688,-531.15,0.00038356,2]
[310213160,1704402639697,-500.0,0.00038356,7]
[310213162,1704402639706,-500.0,0.00038356,7]
[310213165,1704402639716,-500.0,0.00038356,7]
[310213167,1704402639725,-500.0,0.00038356,7]
[310213170,1704402639736,-500.0,0.00038356,7]
[310213173,1704402639746,-500.0,0.00038356,7]
[310213175,1704402639756,-500.0,0.00038356,7]
[310213177,1704402639765,-545.36,0.00038356,7]
[310213179,1704402639774,-500.0,0.00038356,7]
[310213181,1704402639783,-500.0,0.00038356,7]
[310213183,1704402639793,-500.0,0.00038356,7]
[310213195,1704402639802,-546.74155389,0.00038356,4]
[310213197,1704402639908,-500.0,0.00038356,7]
[310213199,1704402639917,-827.45,0.00038356,7]
[310213201,1704402639927,-156.12303183,0.00038356,4]
[310213203,1704402639938,-500.0,0.00038356,7]
[310213205,1704402639947,-541.29648697,0.00038356,7]
[310213207,1704402639957,-500.0,0.00038356,7]
[310213209,1704402639966,-500.0,0.00038356,7]
[310213211,1704402639975,-500.0,0.00038356,7]
[310213213,1704402639984,-1799.00583799,0.00038356,2]
[310213215,1704402639993,-175.92039455,0.00038356,2]
[310213217,1704402640002,-500.0,0.00038356,7]
[310213219,1704402640011,-234.79234472,0.00038356,7]
[310213221,1704402640020,-500.0,0.00038356,7]
[310213223,1704402640029,-416.40934462,0.00038356,7]
[310213225,1704402640039,-500.0,0.00038356,7]
[310213227,1704402640048,-540.21865481,0.00038356,7]
[310213229,1704402640057,-500.0,0.00038356,7]
[310213231,1704402640066,-1245.07,0.00038356,7]
[310213233,1704402640076,-500.0,0.00038356,7]
[310213235,1704402640084,-500.0,0.00038356,7]
[310213236,1704402640093,-500.0,0.00038356,7]
[310213238,1704402640102,-500.0,0.00038356,7]
[310213240,1704402640111,-500.0,0.00038356,7]
[310213242,1704402640120,-223.26616222,0.00038356,7]
[310213244,1704402640129,-500.0,0.00038356,7]
[310213246,1704402640138,-825.19,0.00038356,7]
[310213248,1704402640147,-500.0,0.00038356,7]
[310213250,1704402640158,-500.0,0.00038356,7]
[310213252,1704402640167,-500.0,0.00038356,7]
[310213254,1704402640180,-407.33396314,0.00038356,7]
[310213256,1704402640190,-500.0,0.00038356,7]
[310213258,1704402640199,-528.44747831,0.00038356,7]
[310213260,1704402640208,-500.0,0.00038356,7]
[310213262,1704402640218,-500.0,0.00038356,7]
[310213264,1704402640227,-500.0,0.00038356,7]
[310213266,1704402640236,-500.0,0.00038356,7]
[310213268,1704402640245,-500.0,0.00038356,7]
[310213270,1704402640254,-500.0,0.00038356,7]
[310213272,1704402640264,-500.0,0.00038356,7]
[310213274,1704402640272,-2473.66,0.00038356,7]
[310213276,1704402640281,-500.0,0.00038356,7]
[310213278,1704402640290,-500.0,0.00038356,7]
[310213280,1704402640299,-500.0,0.00038356,7]
[310213282,1704402640308,-550.79041391,0.00038356,7]
[310213284,1704402640317,-334.53425647,0.00038356,7]
[310213285,1704402640326,-500.0,0.00038356,7]
[310213287,1704402640336,-689.61,0.00038356,7]
[310213289,1704402640345,-500.0,0.00038356,7]
[310213291,1704402640354,-500.0,0.00038356,7]
[310213293,1704402640364,-500.0,0.00038356,7]
[310213295,1704402640373,-500.0,0.00038356,7]
[310213297,1704402640383,-293.33550958,0.00038356,7]
[310213300,1704402640392,-500.0,0.00038356,7]
[310213303,1704402640401,-525.27283003,0.00038356,7]
[310213305,1704402640411,-500.0,0.00038356,7]
[310213307,1704402640420,-500.0,0.00038356,7]
[310213309,1704402640429,-500.0,0.00038356,7]
[310213311,1704402640442,-500.0,0.00038356,7]
[310213313,1704402640452,-500.0,0.00038356,7]
[310213315,1704402640461,-500.0,0.00038356,7]
[310213317,1704402640471,-1976.56,0.00038356,2]
[310213319,1704402640480,-500.0,0.00038356,7]
[310213321,1704402640489,-500.0,0.00038356,7]
[310213323,1704402640499,-500.0,0.00038356,7]
[310213325,1704402640508,-512.51115803,0.00038356,7]
[310213327,1704402640518,-500.0,0.00038356,7]
[310213329,1704402640527,-500.0,0.00038356,2]
[310213331,1704402640536,-500.0,0.00038356,7]
[310213333,1704402640545,-1936.31,0.00038356,7]
[310213335,1704402640555,-961.52,0.00038356,7]
[310213337,1704402640564,-1091.4,0.00038356,7]
[310213338,1704402640573,-500.0,0.00038356,7]
[310213340,1704402640583,-500.0,0.00038356,7]
[310213342,1704402640593,-533.23208133,0.00038356,7]
[310213344,1704402640603,-504.90989519,0.00038356,7]
[310213346,1704402640612,-500.0,0.00038356,7]
[310213348,1704402640621,-500.0,0.00038356,7]
[310213350,1704402640630,-504.6134271,0.00038356,7]
[310213352,1704402640640,-500.0,0.00038356,7]
[310213354,1704402640649,-607.78067208,0.00038356,7]
[310213356,1704402640659,-1512.12,0.00038356,7]
[310213358,1704402640668,-500.0,0.00038356,7]
[310213360,1704402640677,-182.10087568,0.00038356,7]
[310213362,1704402640688,-500.0,0.00038356,7]
[310213364,1704402640698,-500.0,0.00038356,7]
[310213366,1704402640707,-661.26,0.00038356,7]
[310213368,1704402640716,-500.0,0.00038356,7]
[310213370,1704402640724,-618.85601793,0.00038356,7]
[310213372,1704402640734,-705.46,0.00038356,7]
[310213374,1704402640744,-575.41010364,0.00038356,7]
[310213376,1704402640754,-502.72,0.00038356,7]
[310213378,1704402640764,-500.0,0.00038356,7]
[310213380,1704402640773,-550.0,0.00038356,7]
[310213382,1704402640783,-500.0,0.00038356,7]
[310213384,1704402640792,-500.0,0.00038356,7]
[310213386,1704402640801,-804.09,0.00038356,7]
[310213388,1704402640811,-624.2989346,0.00038356,7]
[310213390,1704402640820,-500.0,0.00038356,7]
[310213392,1704402640829,-500.0,0.00038356,7]
[310213394,1704402640839,-500.0,0.00038356,7]
[310213396,1704402640849,-500.0,0.00038356,7]
[310213398,1704402640858,-500.0,0.00038356,7]
[310213400,1704402640866,-500.0,0.00038356,7]
[310213402,1704402640876,-500.0,0.00038356,7]
[310213404,1704402640885,-500.0,0.00038356,7]
[310213406,1704402640894,-1531.92,0.00038356,7]
[310213408,1704402640903,-500.0,0.00038356,7]
[310213410,1704402640913,-516.60431765,0.00038356,7]
[310213412,1704402640922,-500.0,0.00038356,7]
[310213414,1704402640931,-530.19501161,0.00038356,7]
[310213416,1704402640943,-500.0,0.00038356,7]
[310213418,1704402640953,-500.0,0.00038356,7]
[310213420,1704402640963,-274.27195752,0.00038356,7]
[310213422,1704402640973,-500.0,0.00038356,7]
[310213424,1704402640982,-512.75106036,0.00038356,7]
[310213426,1704402640992,-500.0,0.00038356,7]
[310213428,1704402641001,-500.0,0.00038356,7]
[310213430,1704402641011,-1000.0,0.00038356,5]
[310213431,1704402641023,-500.0,0.00038356,7]
[310213433,1704402641031,-687.47,0.00038356,7]
[310213435,1704402641041,-500.0,0.00038356,7]
[310213437,1704402641050,-197.34080759,0.00038356,7]
[310213439,1704402641058,-500.0,0.00038356,7]
[310213441,1704402641068,-500.0,0.00038356,7]
[310213443,1704402641076,-528.7,0.00038356,7]
[310213445,1704402641086,-500.0,0.00038356,7]
[310213447,1704402641095,-500.0,0.00038356,7]
[310213449,1704402641104,-1000.0,0.00038356,2]
[310213451,1704402641113,-500.0,0.00038356,7]
[310213453,1704402641122,-184.42609289,0.00038356,7]
[310213455,1704402641132,-500.0,0.00038356,7]
[310213457,1704402641141,-779.47,0.00038356,7]
[310213459,1704402641151,-577.5,0.00038356,7]
[310213461,1704402641159,-552.50501211,0.00038356,7]
[310213463,1704402641168,-500.0,0.00038356,7]
[310213465,1704402641178,-563.04889974,0.00038356,7]
[310213467,1704402641188,-500.0,0.00038356,7]
[310213469,1704402641197,-500.0,0.00038356,7]
[310213471,1704402641206,-500.0,0.00038356,7]
[310213473,1704402641215,-500.0,0.00038356,7]
[310213475,1704402641224,-500.0,0.00038356,7]
[310213477,1704402641233,-500.0,0.00038356,7]
[310213479,1704402641242,-503.23643126,0.00038356,7]
[310213480,1704402641251,-500.0,0.00038356,7]
[310213482,1704402641260,-221.18926092,0.00038356,7]
[310213484,1704402641270,-500.0,0.00038356,7]
[310213486,1704402641278,-500.0,0.00038356,7]
[310213488,1704402641287,-500.0,0.00038356,7]
[310213490,1704402641296,-572.68,0.00038356,7]
[310213492,1704402641306,-876.01,0.00038356,7]
[310213494,1704402641315,-500.0,0.00038356,7]
[310213496,1704402641325,-244.925021,0.00038356,7]
[310213498,1704402641334,-500.0,0.00038356,7]
[310213500,1704402641343,-500.0,0.00038356,7]
[310213502,1704402641351,-200.0,0.00038356,7]
[310213504,1704402641361,-500.0,0.00038356,7]
[310213506,1704402641369,-500.0,0.00038356,7]
[310213508,1704402641378,-208.77022462,0.00038356,7]
[310213510,1704402641390,-500.0,0.00038356,7]
[310213512,1704402641400,-534.62,0.00038356,7]
[310213514,1704402641410,-864.97,0.00038356,7]
[310213515,1704402641419,-1586.66,0.00038356,7]
[310213517,1704402641429,-500.0,0.00038356,7]
[310213519,1704402641440,-500.0,0.00038356,7]
[310213521,1704402641450,-872.84,0.00038356,7]
[310213523,1704402641459,-500.0,0.00038356,7]
[310213525,1704402641469,-500.0,0.00038356,7]
[310213527,1704402641478,-500.0,0.00038356,7]
[310213529,1704402641488,-500.0,0.00038356,7]
[310213531,1704402641499,-3351.02,0.00038356,7]
[310213533,1704402641508,-500.0,0.00038356,7]
[310213535,1704402641517,-500.0,0.00038356,7]
[310213537,1704402641527,-500.0,0.00038356,7]
[310213539,1704402641537,-500.0,0.00038356,7]
[310213541,1704402641547,-562.12,0.00038356,7]
[310213543,1704402641557,-4359.94,0.00038356,7]
[310213545,1704402641566,-500.0,0.00038356,7]
[310213547,1704402641577,-500.0,0.00038356,7]
[310213549,1704402641587,-500.0,0.00038356,7]
[310213550,1704402641596,-672.06,0.00038356,7]
[310213552,1704402641606,-500.0,0.00038356,7]
[310213554,1704402641615,-878.43,0.00038356,7]
[310213556,1704402641625,-2456.29,0.00038356,7]
[310213558,1704402641634,-500.0,0.00038356,7]
[310213560,1704402641645,-519.74942275,0.00038356,7]
[310213562,1704402641654,-831.29,0.00038356,7]
[310213564,1704402641663,-500.0,0.00038356,7]
[310213566,1704402641672,-500.0,0.00038356,7]
[310213568,1704402641681,-500.0,0.00038356,7]
[310213570,1704402641693,-500.0,0.00038356,7]
[310213572,1704402641703,-500.0,0.00038356,7]
[310213574,1704402641712,-500.0,0.00038356,7]
[310213576,1704402641721,-500.0,0.00038356,7]
[310213578,1704402641731,-500.0,0.00038356,7]
[310213580,1704402641741,-500.0,0.00038356,7]
[310213582,1704402641750,-500.0,0.00038356,7]
[310213583,1704402641759,-500.0,0.00038356,7]
[310213585,1704402641769,-150.0,0.00038356,7]
[310213587,1704402641779,-1273.76,0.00038356,7]
[310213590,1704402641789,-500.0,0.00038356,7]
[310213591,1704402641799,-500.0,0.00038356,7]
[310213593,1704402641808,-688.4,0.00038356,7]
[310213595,1704402641818,-500.0,0.00038356,7]
[310213597,1704402641827,-500.0,0.00038356,7]
[310213599,1704402641837,-500.0,0.00038356,7]
[310213601,1704402641846,-806.11,0.00038356,7]
[310213603,1704402641855,-500.0,0.00038356,7]
[310213605,1704402641864,-807.33,0.00038356,7]
[310213607,1704402641873,-500.0,0.00038356,7]
[310213609,1704402641883,-3571.72,0.00038356,7]
[310213611,1704402641892,-500.0,0.00038356,7]
[310213613,1704402641901,-500.0,0.00038356,7]
[310213615,1704402641910,-10711.78,0.00038356,7]
[310213617,1704402641919,-25933.85,0.00038356,7]
[310213619,1704402641930,-500.0,0.00038356,7]
[310213621,1704402641940,-500.0,0.00038356,7]
[310213623,1704402641949,-500.0,0.00038356,7]
[310213625,1704402641958,-364.19219568,0.00038356,7]
[310213627,1704402641967,-500.0,0.00038356,7]
[310213629,1704402641976,-500.0,0.00038356,7]
[310213631,1704402641985,-500.0,0.00038356,7]
[310213632,1704402641994,-500.0,0.00038356,7]
[310213633,1704402642003,-500.0,0.00038356,7]
[310213634,1704402642012,-500.0,0.00038356,7]
[310213635,1704402642021,-500.0,0.00038356,7]
[310213636,1704402642030,-500.0,0.00038356,7]
[310213637,1704402642039,-512.70174209,0.00038356,7]
[310213638,1704402642048,-500.0,0.00038356,7]
[310213639,1704402642056,-500.0,0.00038356,7]
[310213640,1704402642066,-500.0,0.00038356,7]
[310213641,1704402642074,-1808.05,0.00038356,7]
[310213642,1704402642083,-500.0,0.00038356,7]
[310213643,1704402642092,-1587.08,0.00038356,7]
[310213644,1704402642101,-500.0,0.00038356,7]
[310213646,1704402642110,-4004.34,0.00038356,7]
[310213647,1704402642206,-500.0,0.00038356,7]
[310213648,1704402642215,-2074.54,0.00038356,7]
[310213650,1704402642226,-18129.08,0.00038356,7]
[310213652,1704402642236,-500.0,0.00038356,7]
[310213654,1704402642245,-586.54357499,0.00038356,7]
[310213656,1704402642255,-500.0,0.00038356,7]
[310213658,1704402642265,-500.0,0.00038356,7]
[310213660,1704402642275,-723.52,0.00038356,7]
[310213662,1704402642285,-1985.08,0.00038356,7]
[310213664,1704402642295,-1103.74,0.00038356,7]
[310213666,1704402642305,-2205.5,0.00038356,7]
[310213668,1704402642316,-500.0,0.00038356,7]
[310213670,1704402642326,-500.0,0.00038356,7]
[310213672,1704402642336,-500.0,0.00038356,7]
[310213674,1704402642346,-500.0,0.00038356,7]
[310213676,1704402642355,-500.0,0.00038356,7]
[310213678,1704402642365,-504.39400687,0.00038356,7]
[310213680,1704402642375,-500.0,0.00038356,7]
[310213682,1704402642384,-500.0,0.00038356,7]
[310213684,1704402642394,-337.65679681,0.00038356,7]
[310213686,1704402642404,-500.0,0.00038356,7]
[310213688,1704402642413,-500.0,0.00038356,7]
[310213690,1704402642422,-673.76,0.00038356,7]
[310213692,1704402642432,-500.0,0.00038356,7]
[310213694,1704402642442,-10104.4,0.00038356,7]
[310213696,1704402642451,-500.0,0.00038356,7]
[310213698,1704402642460,-574.0,0.00038356,7]
[310213700,1704402642470,-500.0,0.00038356,7]
[310213702,1704402642479,-500.0,0.00038356,7]
[310213704,1704402642490,-3161.68,0.00038356,7]
[310213706,1704402642500,-150.4705943,0.00038356,7]
[310213708,1704402642509,-500.0,0.00038356,7]
[310213710,1704402642519,-500.0,0.00038356,2]
[310213712,1704402642527,-500.0,0.00038356,7]
[310213713,1704402642537,-6686.95,0.00038356,7]
[310213715,1704402642546,-500.0,0.00038356,7]
[310213717,1704402642555,-500.0,0.00038356,7]
[310213719,1704402642565,-500.0,0.00038356,7]
[310213721,1704402642574,-1236.2,0.00038356,7]
[310213723,1704402642584,-500.0,0.00038356,7]
[310213726,1704402642594,-500.0,0.00038356,7]
[310213727,1704402642603,-500.0,0.00038356,7]
[310213729,1704402642613,-500.0,0.00038356,7]
[310213732,1704402642623,-2438.73,0.00038356,7]
[310213734,1704402642633,-150.77949282,0.00038367,2]
[310213735,1704402642643,-155.0,0.0003837,2]
[310213738,1704402642652,-173.0,0.00038377,2]
[310213739,1704402642661,-250.0,0.00038499,30]
[310213742,1704402642670,-1349.28450887,0.00038529,2]
[310213744,1704402642680,-183.11118741,0.00038628,4]
[310213746,1704402642690,-500.0,0.0003863,7]
[310213748,1704402642699,-500.0,0.0003863,7]
[310213750,1704402642708,-500.0,0.0003863,7]
[310213752,1704402642717,-500.0,0.0003863,7]
[310213755,1704402642726,-500.0,0.0003863,7]
[310213758,1704402642734,-500.0,0.0003863,7]
[310213761,1704402642744,-500.0,0.0003863,7]
[310213764,1704402642753,-500.0,0.0003863,7]
[310213766,1704402642762,-500.0,0.0003863,7]
[310213769,1704402642771,-500.0,0.0003863,7]
[310213771,1704402642781,-186.45534578,0.0003863,7]
[310213774,1704402642790,-1019.78,0.0003863,7]
[310213777,1704402642799,-500.0,0.0003863,7]
[310213781,1704402642808,-500.0,0.0003863,7]
[310213785,1704402642817,-833.25,0.0003863,7]
[310213789,1704402642827,-500.0,0.0003863,7]
[310213793,1704402642835,-500.0,0.0003863,7]
[310213796,1704402642845,-5000.0,0.0003863,10]
[310213799,1704402642854,-500.0,0.0003863,7]
[310213802,1704402642863,-1197.4,0.0003863,7]